bitfinex/quotes_SOLUSD_20250318
["timestamp","ask_amount","ask_price","bid_price","bid_amount"]
[1742278453577,14.55848555,124.68,124.65,0.03]
[1742278454204,22.57898555,124.68,124.65,0.03]
[1742278454583,14.55848555,124.68,124.65,0.03]
[1742278455184,22.57898555,124.68,124.65,0.03]
[1742278457500,14.55848555,124.68,124.65,0.03]
[1742278457705,14.49548555,124.67,124.65,0.03]
[1742278458092,0.063,124.68,124.65,18.67964886]
[1742278458291,0.063,124.68,124.66,1.5717]
[1742278458699,14.55848555,124.68,124.66,1.5717]
[1742278459810,14.55848555,124.68,124.66,9.5934]
[1742278460601,0.063,124.68,124.66,9.5934]
[1742278463209,20.28432314,124.66,124.65,0.03]
[1742278463413,20.0,124.63,124.6,0.03]
[1742278463599,14.49548555,124.61,124.6,0.03]
[1742278468392,22.52048555,124.61,124.6,0.03]
[1742278476417,0.28432314,124.6,124.59,0.03]
[1742278476620,14.77980869,124.6,124.54,6.9]
[1742278476911,14.49548555,124.56,124.54,6.9]
[1742278477112,14.49548555,124.56,124.53,8.1503]
[1742278477314,14.49548555,124.54,124.53,1.6208]
[1742278482621,14.49548555,124.55,124.53,1.6208]
[1742278483535,14.49548555,124.56,124.53,9.6509]
[1742278484426,34.49548555,124.56,124.53,9.6509]
[1742278484624,20.0,124.56,124.53,9.6509]
[1742278486927,20.0,124.56,124.53,24.14638555]
[1742278487702,20.0,124.56,124.53,9.6809]
[1742278488529,14.49548555,124.57,124.53,9.6809]
[1742278489032,14.49548555,124.58,124.54,26.67914886]
[1742278489927,22.52258555,124.58,124.54,18.64964886]
[1742278490224,14.49548555,124.58,124.54,26.67904886]
[1742278490531,22.52238555,124.58,124.55,6.9]
[1742278491427,14.49548555,124.57,124.55,6.9]
[1742278491627,14.49548555,124.56,124.55,6.9]
[1742278491931,8.0269,124.58,124.55,6.9]
[1742278492133,14.49548555,124.56,124.55,6.9]
[1742278492335,28.0281,124.57,124.55,6.9]
[1742278492515,42.52358555,124.57,124.55,6.9]
[1742278498338,28.0281,124.57,124.55,6.9]
[1742278498633,14.49548555,124.56,124.55,6.9]
[1742278499843,14.49548555,124.56,124.53,1.6508]
[1742278500020,14.49548555,124.55,124.53,0.03]
[1742278500333,14.49548555,124.54,124.53,0.03]
[1742278501039,22.52498555,124.54,124.53,0.03]
[1742278502146,22.52408555,124.56,124.53,0.03]
[1742278502433,14.49548555,124.56,124.53,0.03]
[1742278502630,34.49548555,124.57,124.53,18.67964886]
[1742278503226,42.52318555,124.57,124.53,18.67964886]
[1742278503433,14.49548555,124.56,124.53,18.67964886]
[1742278503630,34.49548555,124.57,124.53,26.70964886]
[1742278503937,14.49548555,124.56,124.53,0.03]
[1742278504339,14.49548555,124.56,124.53,18.67964886]
[1742278504643,28.0277,124.57,124.53,0.03]
[1742278504644,14.49548555,124.54,124.53,0.03]
[1742278504843,14.49548555,124.55,124.53,0.03]
[1742278505542,14.49548555,124.54,124.53,0.03]
[1742278507538,22.52498555,124.54,124.53,0.03]
[1742278509940,14.49548555,124.54,124.53,0.03]
[1742278510143,14.49548555,124.55,124.53,0.03]
[1742278511043,20.0,124.54,124.53,0.03]
[1742278511650,34.49548555,124.54,124.53,0.03]
[1742278512751,20.0,124.54,124.53,0.03]
[1742278514628,34.49548555,124.54,124.53,0.03]
[1742278516260,42.52498555,124.54,124.53,0.03]
[1742278522245,42.80930869,124.54,124.53,0.03]
[1742278525749,22.81120869,124.51,124.5,0.03]
[1742278530954,20.0,124.47,124.43,7.8131]
[1742278531153,14.49548555,124.44,124.43,1.663]
[1742278531747,14.49548555,124.45,124.43,1.663]
[1742278533161,22.53098555,124.45,124.43,1.663]
[1742278535059,14.49548555,124.44,124.4,0.03]
[1742278535372,8.0366,124.43,124.4,0.03]
[1742278535673,14.49548555,124.42,124.4,0.03]
[1742278536475,8.31902314,124.46,124.4,0.03]
[1742278536674,14.49548555,124.46,124.42,6.6398]
[1742278536967,67.38884763,124.5,124.43,18.64964886]
[1742278536968,14.49548555,124.47,124.43,18.64964886]
[1742278537168,14.49548555,124.47,124.43,26.68564886]
[1742278537741,6.963,124.51,124.44,1.5411]
[1742278537742,14.49548555,124.48,124.44,1.5411]
[1742278537939,34.49548555,124.47,124.44,1.5411]
[1742278538339,14.49548555,124.46,124.44,1.5411]
[1742278539543,14.49548555,124.46,124.44,9.577]
[1742278539743,20.0,124.49,124.44,9.577]
[1742278539949,14.49548555,124.48,124.44,9.577]
[1742278541278,22.70572162,124.48,124.44,9.577]
[1742278541659,22.70572162,124.5,124.45,41.35537048]
[1742278541863,22.76872162,124.51,124.46,29.60572162]
[1742278542451,0.063,124.51,124.47,18.64964886]
[1742278542774,0.063,124.51,124.47,47.61617048]
[1742278542979,0.063,124.51,124.48,8.0334]
[1742278543547,0.063,124.51,124.49,1.5055]
[1742278545376,0.063,124.51,124.49,9.5381]
[1742278545679,0.063,124.51,124.5,6.9]
[1742278546052,0.063,124.51,124.5,25.54964886]
[1742278546378,0.063,124.51,124.5,48.25537048]
[1742278547257,0.063,124.51,124.5,56.28747048]
[1742278547872,0.063,124.51,124.5,33.58174886]
[1742278548077,0.063,124.51,124.5,25.54964886]
[1742278548370,0.063,124.51,124.5,33.58174886]
[1742278549575,0.063,124.51,124.5,25.54964886]
[1742278551375,0.063,124.51,124.5,33.58174886]
[1742278552258,0.063,124.51,124.5,25.54964886]
[1742278553108,0.063,124.51,124.49,1.5055]
[1742278553283,22.70572162,124.5,124.47,138.1]
[1742278553482,22.70572162,124.48,124.46,1.6369]
[1742278553782,30.73922162,124.48,124.46,1.6369]
[1742278554762,22.70572162,124.47,124.46,1.6369]
[1742278555072,22.70572162,124.47,124.43,22.7971]
[1742278555266,22.70572162,124.46,124.43,22.7971]
[1742278555870,22.70572162,124.47,124.43,22.7971]
[1742278556174,22.70572162,124.48,124.43,45.50282162]
[1742278556474,42.70572162,124.49,124.44,41.35537048]
[1742278556653,42.70572162,124.49,124.46,18.64964886]
[1742278556850,0.063,124.51,124.46,41.35537048]
[1742278557083,22.70572162,124.5,124.46,41.35537048]
[1742278557378,22.70572162,124.49,124.46,18.64964886]
[1742278558577,22.70572162,124.49,124.46,18.67964886]
[1742278558961,22.70572162,124.49,124.46,26.71414886]
[1742278559483,42.70572162,124.5,124.46,26.71414886]
[1742278560757,22.70572162,124.48,124.46,0.03]
[1742278562881,30.73912162,124.48,124.46,0.03]
[1742278563063,22.70572162,124.47,124.46,0.03]
[1742278564682,30.43972162,124.47,124.46,0.03]
[1742278564887,30.73972162,124.47,124.46,0.03]
[1742278565087,22.70572162,124.47,124.46,0.03]
[1742278565385,22.70572162,124.48,124.46,0.03]
[1742278565773,22.70572162,124.47,124.46,0.03]
[1742278566671,30.73972162,124.47,124.46,0.03]
[1742278568284,20.0,124.44,124.43,1.1698106]
[1742278568469,42.70572162,124.44,124.43,1.1698106]
[1742278568789,50.74172162,124.44,124.43,1.1698106]
[1742278569784,73.73176638,124.44,124.43,1.1698106]
[1742278573298,0.28432314,124.43,124.4,0.03]
[1742278573473,22.70572162,124.41,124.4,0.03]
[1742278575706,30.74362162,124.41,124.4,0.03]
[1742278576304,31.02794476,124.41,124.4,0.03]
[1742278587393,49.96191676,124.41,124.4,0.03]
[1742278587706,20.0,124.37,124.33,6.5171]
[1742278587883,20.0,124.35,124.33,6.5171]
[1742278588409,20.0,124.35,124.33,14.5601]
[1742278588716,42.70572162,124.36,124.33,14.5601]
[1742278589014,20.0,124.36,124.33,14.5601]
[1742278589507,42.70572162,124.36,124.33,14.5601]
[1742278590643,22.70572162,124.36,124.33,14.5601]
[1742278590811,22.70572162,124.37,124.33,14.5601]
[1742278592117,22.70572162,124.36,124.33,6.5171]
[1742278593320,22.70572162,124.35,124.33,0.03]
[1742278594402,30.74762162,124.35,124.33,0.03]
[1742278595094,22.60410403,124.35,124.33,0.03]
[1742278595922,14.56220403,124.35,124.33,0.03]
[1742278596096,14.56220403,124.34,124.33,0.03]
[1742278596916,14.84652717,124.34,124.33,0.03]
[1742278598309,22.88892717,124.34,124.33,0.03]
[1742278599020,41.82289917,124.34,124.33,0.03]
[1742278599320,20.0,124.31,124.27,0.3]
[1742278599524,20.0,124.29,124.27,0.3]
[1742278600329,50.8185307,124.3,124.27,0.3]
[1742278600921,22.7733307,124.29,124.27,0.3]
[1742278602101,50.8185307,124.3,124.27,0.3]
[1742278602310,22.7733307,124.29,124.27,0.3]
[1742278603119,81.8,124.33,124.27,49.76977956]
[1742278603311,22.7733307,124.33,124.28,29.6733307]
[1742278604323,22.7733307,124.32,124.28,6.9]
[1742278604519,22.7733307,124.31,124.28,6.9]
[1742278604717,22.7733307,124.31,124.28,14.9462]
[1742278607216,22.7733307,124.32,124.28,14.9462]
[1742278607532,22.7733307,124.31,124.28,14.9462]
[1742278608803,42.7733307,124.32,124.28,14.9462]
[1742278609305,42.7733307,124.32,124.28,8.0462]
[1742278609912,22.7733307,124.31,124.27,15.2667]
[1742278610739,30.8178307,124.31,124.27,7.22]
[1742278611042,22.7733307,124.31,124.27,15.2668]
[1742278611211,30.8177307,124.31,124.27,15.2668]
[1742278611412,30.8177307,124.31,124.27,15.2669]
[1742278611413,22.7733307,124.31,124.27,15.2669]
[1742278612435,22.7733307,124.3,124.27,15.2669]
[1742278612942,22.7733307,124.31,124.27,15.2669]
[1742278613238,20.0,124.32,124.28,30.4470307]
[1742278613729,22.7733307,124.38,124.34,6.6425]
[1742278614513,22.7733307,124.37,124.34,14.6849]
[1742278614741,22.7733307,124.38,124.34,14.6849]
[1742278616631,22.7733307,124.36,124.34,6.6425]
[1742278616827,22.7733307,124.36,124.33,8.4535]
[1742278617027,22.7733307,124.35,124.33,16.4965]
[1742278617323,22.7733307,124.36,124.33,16.4965]
[1742278617638,22.7733307,124.37,124.33,16.4965]
[1742278617825,22.7733307,124.38,124.33,39.2698307]
[1742278618014,20.0,124.37,124.33,39.2698307]
[1742278618516,20.0,124.37,124.33,59.3775307]
[1742278618710,0.063,124.36,124.33,59.3775307]
[1742278620050,22.7733307,124.34,124.33,1.5335]
[1742278620248,22.7733307,124.35,124.33,1.5335]
[1742278620742,22.7733307,124.35,124.3,1.5761]
[1742278620743,22.7733307,124.34,124.3,1.5761]
[1742278620948,22.7733307,124.33,124.3,1.5761]
[1742278622039,22.7733307,124.32,124.3,1.5761]
[1742278622747,22.7733307,124.31,124.29,6.96]
[1742278623246,22.7733307,124.31,124.28,6.4963]
[1742278623845,22.7733307,124.3,124.28,0.03]
[1742278624526,22.7733307,124.31,124.28,0.03]
[1742278625031,30.8164307,124.33,124.28,22.8033307]
[1742278626949,22.7733307,124.32,124.28,0.03]
[1742278627717,22.7733307,124.31,124.28,0.03]
[1742278628751,8.045,124.3,124.28,0.03]
[1742278629440,30.8183307,124.3,124.28,0.03]
[1742278629648,22.7733307,124.29,124.28,0.03]
[1742278630825,31.10325384,124.29,124.28,0.03]
[1742278632367,31.10325384,124.29,124.27,0.3]
[1742278632368,0.28432314,124.28,124.27,0.3]
[1742278632661,22.7733307,124.28,124.27,0.3]
[1742278632833,30.8196307,124.28,124.27,0.3]
[1742278636845,22.7733307,124.29,124.27,0.3]
[1742278637151,143.6172027,124.32,124.27,0.3]
[1742278637152,30.8177307,124.31,124.27,0.3]
[1742278637450,22.7733307,124.29,124.27,0.3]
[1742278637653,22.7733307,124.28,124.27,0.3]
[1742278639359,30.8196307,124.28,124.27,0.3]
[1742278640554,31.10395384,124.28,124.27,0.3]
[1742278642551,54.16160768,124.28,124.27,0.0001]
[1742278642756,114.50910768,124.28,124.22,1.6198]
[1742278642963,22.7733307,124.23,124.22,1.6198]
[1742278643261,22.7733307,124.23,124.19,6.2949]
[1742278643435,22.7733307,124.26,124.19,6.2949]
[1742278643436,22.7733307,124.21,124.19,6.2949]
[1742278644248,22.7733307,124.23,124.19,14.347]
[1742278644452,22.7733307,124.24,124.19,37.1203307]
[1742278644863,22.7733307,124.25,124.2,49.47397956]
[1742278645360,30.8216307,124.25,124.2,49.47397956]
[1742278645767,22.7733307,124.25,124.2,49.47397956]
[1742278646754,22.7733307,124.25,124.2,361.47397956]
[1742278647060,22.7733307,124.27,124.22,24.3608307]
[1742278647263,22.7733307,124.27,124.23,6.3155]
[1742278648560,22.7733307,124.24,124.23,6.3155]
[1742278649252,8.0477,124.26,124.23,6.3155]
[1742278649253,22.7733307,124.25,124.23,6.3155]
[1742278649746,8.1095,124.28,124.23,6.3155]
[1742278649946,22.7733307,124.26,124.23,6.3155]
[1742278650147,22.7733307,124.26,124.23,14.365]
[1742278651264,22.7733307,124.27,124.23,14.365]
[1742278653073,8.1093,124.28,124.23,14.365]
[1742278653269,0.063,124.28,124.23,6.3155]
[1742278653458,22.8363307,124.28,124.23,29.0888307]
[1742278653659,22.8363307,124.28,124.23,37.1382307]
[1742278653963,0.063,124.28,124.24,22.7733307]
[1742278654853,0.063,124.28,124.25,30.8215307]
[1742278655053,0.063,124.28,124.27,24.4104307]
[1742278655381,0.063,124.28,124.27,1.6371]
[1742278657383,0.063,124.28,124.27,9.684]
[1742278657753,0.063,124.28,124.27,24.4104307]
[1742278658074,0.063,124.28,124.27,1.6371]
[1742278662963,0.063,124.28,124.27,195.84722584]
[1742278663279,22.8363307,124.36,124.3,8.045]
[1742278663481,22.8363307,124.36,124.32,1.5759]
[1742278663688,22.7733307,124.35,124.32,1.5759]
[1742278664777,22.8363307,124.36,124.32,1.5759]
[1742278664989,0.063,124.36,124.32,1.5759]
[1742278665482,0.063,124.36,124.33,8.0431]
[1742278666066,22.8363307,124.36,124.32,9.6193]
[1742278666268,22.8363307,124.36,124.32,1.5759]
[1742278666586,22.7733307,124.35,124.32,1.5759]
[1742278666760,22.7733307,124.34,124.31,7.12]
[1742278668080,30.8159307,124.34,124.31,7.12]
[1742278669681,30.8154307,124.35,124.31,7.12]
[1742278669878,22.8363307,124.36,124.31,37.9376307]
[1742278670485,42.7733307,124.35,124.31,15.1643]
[1742278671162,50.8151307,124.35,124.31,15.1643]
[1742278671368,50.8151307,124.35,124.31,7.12]
[1742278673213,30.8159307,124.34,124.31,7.12]
[1742278676961,22.7733307,124.34,124.31,7.12]
[1742278677163,20.0,124.35,124.31,37.9375307]
[1742278677586,42.7733307,124.35,124.31,15.1642]
[1742278678598,22.7733307,124.34,124.31,7.12]
[1742278679391,8.0431,124.33,124.29,1.5147]
[1742278679591,22.7733307,124.32,124.29,1.5147]
[1742278679891,22.7733307,124.31,124.29,1.5147]
[1742278680068,22.7733307,124.31,124.27,6.0716]
[1742278680401,22.7733307,124.3,124.27,6.0716]
[1742278680565,0.28432314,124.32,124.27,6.0716]
[1742278680761,22.7733307,124.3,124.28,0.03]
[1742278680995,22.7733307,124.29,124.28,0.03]
[1742278681182,22.7733307,124.3,124.28,0.03]
[1742278681580,30.8184307,124.3,124.28,0.03]
[1742278683088,22.7733307,124.29,124.28,0.03]
[1742278683972,23.05765384,124.29,124.28,0.03]
[1742278684395,41.99162584,124.29,124.28,0.03]
[1742278684594,0.28432314,124.27,124.23,1.694]
[1742278684899,22.7733307,124.25,124.23,1.694]
[1742278685394,0.28432314,124.27,124.23,0.03]
[1742278685395,22.7733307,124.24,124.23,0.03]
[1742278685774,22.7733307,124.25,124.23,0.03]
[1742278686171,0.28432314,124.27,124.23,0.03]
[1742278686408,23.05765384,124.27,124.23,0.03]
[1742278686786,22.7733307,124.27,124.23,0.03]
[1742278687103,30.8204307,124.27,124.23,22.8033307]
[1742278687570,30.8204307,124.27,124.23,0.03]
[1742278687766,22.7733307,124.25,124.23,0.03]
[1742278687973,20.0,124.21,124.14,1.5797]
[1742278688186,42.7733307,124.21,124.15,22.7733307]
[1742278688586,42.7733307,124.21,124.14,9.635]
[1742278688780,22.7733307,124.2,124.15,22.7733307]
[1742278689095,22.7733307,124.2,124.15,30.8278307]
[1742278689482,30.8248307,124.2,124.15,30.8278307]
[1742278690391,22.7733307,124.2,124.15,30.8278307]
[1742278690601,28.0511,124.21,124.15,30.8278307]
[1742278690602,42.7733307,124.21,124.16,22.7733307]
[1742278691109,42.7733307,124.21,124.16,30.8268307]
[1742278691288,22.7733307,124.2,124.16,8.0535]
[1742278692909,22.7733307,124.21,124.16,30.8268307]
[1742278693089,22.7733307,124.21,124.16,37.9868307]
[1742278693590,22.7733307,124.22,124.17,22.7733307]
[1742278693792,8.0495,124.23,124.17,22.7733307]
[1742278693986,22.7733307,124.22,124.17,22.7733307]
[1742278694803,22.7733307,124.22,124.18,8.0528]
[1742278696004,0.28432314,124.24,124.18,30.8261307]
[1742278696175,22.7733307,124.23,124.18,30.8261307]
[1742278697084,30.8229307,124.23,124.18,30.8261307]
[1742278698106,22.7733307,124.23,124.18,30.8261307]
[1742278698409,22.7733307,124.23,124.18,8.0528]
[1742278698410,22.7733307,124.22,124.18,8.0528]
[1742278699187,22.7733307,124.23,124.18,30.8261307]
[1742278699710,22.7733307,124.22,124.18,8.0528]
[1742278699885,22.7733307,124.22,124.17,30.8265307]
[1742278700485,22.7733307,124.21,124.16,44.2260307]
[1742278700689,22.7733307,124.2,124.16,21.4527]
[1742278700889,22.7733307,124.2,124.16,14.2927]
[1742278701389,22.7733307,124.19,124.16,6.2389]
[1742278701591,22.7733307,124.19,124.15,0.03]
[1742278701795,22.7733307,124.19,124.15,8.0846]
[1742278702000,30.8249307,124.2,124.15,30.8579307]
[1742278702311,22.7733307,124.21,124.16,22.7733307]
[1742278703257,22.7733307,124.22,124.17,22.7733307]
[1742278703507,22.7733307,124.22,124.18,8.0528]
[1742278703693,30.8235307,124.22,124.18,8.0528]
[1742278703885,22.7733307,124.21,124.17,8.0532]
[1742278704088,22.7733307,124.2,124.16,8.0541]
[1742278705797,0.28432314,124.19,124.15,0.03]
[1742278706100,22.7733307,124.18,124.15,0.03]
[1742278706506,22.7733307,124.18,124.15,8.0847]
[1742278706893,23.05765384,124.19,124.15,8.0847]
[1742278707115,23.05765384,124.19,124.15,0.03]
[1742278707417,22.7733307,124.18,124.15,0.03]
[1742278707597,22.7733307,124.19,124.15,8.0845]
[1742278708228,8.0517,124.2,124.15,8.0845]
[1742278708405,22.7733307,124.19,124.15,8.0845]
[1742278710017,22.7733307,124.18,124.15,0.03]
[1742278711395,8.0534,124.17,124.15,0.03]
[1742278711715,22.7733307,124.18,124.15,0.03]
[1742278712721,23.05765384,124.19,124.15,0.03]
[1742278713106,22.7733307,124.18,124.15,0.03]
[1742278713817,23.05765384,124.19,124.15,0.03]
[1742278714923,22.7733307,124.2,124.15,22.8033307]
[1742278715737,22.7733307,124.2,124.16,8.0541]
[1742278716096,22.7733307,124.2,124.16,28.1894]
[1742278717027,22.7733307,124.2,124.16,8.0541]
[1742278718924,22.7733307,124.2,124.15,8.0844]
[1742278719126,22.7733307,124.2,124.15,30.8577307]
[1742278719429,22.7733307,124.19,124.15,30.8577307]
[1742278719725,22.7733307,124.19,124.15,8.0847]
[1742278720230,22.7733307,124.19,124.15,30.8580307]
[1742278721437,22.7733307,124.19,124.15,8.0847]
[1742278721728,22.7733307,124.18,124.15,0.03]
[1742278722119,30.8254307,124.19,124.15,0.03]
[1742278722727,22.7733307,124.18,124.15,0.03]
[1742278723742,30.8254307,124.19,124.15,0.03]
[1742278724621,22.7733307,124.18,124.15,0.03]
[1742278725339,22.7733307,124.17,124.15,0.03]
[1742278726144,8.33722314,124.18,124.15,0.03]
[1742278726445,22.7733307,124.17,124.15,0.03]
[1742278726741,22.7733307,124.16,124.15,0.03]
[1742278727431,23.05765384,124.18,124.15,0.03]
[1742278727613,0.28432314,124.18,124.15,0.03]
[1742278727942,22.7733307,124.19,124.15,0.03]
[1742278728133,22.7733307,124.2,124.15,30.8579307]
[1742278728329,0.28432314,124.2,124.16,22.7733307]
[1742278728645,22.7733307,124.19,124.15,15.3246]
[1742278729146,22.91549227,124.2,124.15,38.0979307]
[1742278729319,112.6238307,124.22,124.16,22.7733307]
[1742278729516,30.8238307,124.22,124.16,22.7733307]
[1742278729710,22.7733307,124.22,124.16,22.7733307]
[1742278729914,0.063,124.23,124.18,22.7733307]
[1742278730134,22.8363307,124.23,124.18,22.7733307]
[1742278730340,22.8363307,124.23,124.19,8.0521]
[1742278730516,22.7733307,124.22,124.19,8.0521]
[1742278730715,0.063,124.23,124.19,8.0521]
[1742278730929,22.8363307,124.23,124.19,9.6995]
[1742278732245,22.8363307,124.23,124.2,22.7733307]
[1742278732246,0.063,124.23,124.2,22.7733307]
[1742278733446,0.063,124.23,124.19,39.7128307]
[1742278733939,0.063,124.23,124.2,22.7733307]
[1742278734255,0.063,124.23,124.21,22.7733307]
[1742278735249,0.063,124.23,124.19,37.0699]
[1742278735438,0.063,124.23,124.21,30.8236307]
[1742278735639,0.063,124.23,124.22,28.9011307]
[1742278736324,0.063,124.23,124.22,30.4774307]
[1742278737445,0.063,124.23,124.22,38.5276307]
[1742278738645,0.063,124.23,124.22,57.17727956]
[1742278738936,22.7733307,124.3,124.23,18.64964886]
[1742278739129,22.7733307,124.3,124.25,22.7733307]
[1742278739338,30.8809307,124.31,124.26,22.7733307]
[1742278739827,22.7733307,124.3,124.25,30.8212307]
[1742278740149,22.7733307,124.3,124.25,22.7733307]
[1742278742455,30.8187307,124.3,124.25,22.7733307]
[1742278742832,30.8810307,124.31,124.27,1.6075]
[1742278743033,22.7733307,124.3,124.27,1.6075]
[1742278743930,22.7733307,124.29,124.24,48.66297956]
[1742278744131,22.7733307,124.29,124.24,50.23037956]
[1742278744542,30.8194307,124.29,124.24,50.23037956]
[1742278744849,30.8194307,124.29,124.24,42.99037956]
[1742278745054,30.8194307,124.29,124.24,50.23037956]
[1742278745555,30.8194307,124.29,124.24,31.5807307]
[1742278746053,0.14216157,124.24,124.14,7.9974]
[1742278746348,22.7733307,124.19,124.14,7.9974]
[1742278746547,22.7733307,124.18,124.14,7.9974]
[1742278746749,11.05926811,124.23,124.15,18.82181043]
[1742278746940,8.33382314,124.23,124.16,22.7733307]
[1742278747142,30.8228307,124.23,124.17,30.1533307]
[1742278747732,22.7733307,124.22,124.17,30.1533307]
[1742278748545,8.0508,124.21,124.17,30.1533307]
[1742278749436,8.0505,124.22,124.17,30.1533307]
[1742278749642,30.8238307,124.22,124.17,30.1533307]
[1742278749840,50.9493307,124.22,124.17,30.1533307]
[1742278750057,50.9493307,124.22,124.17,7.38]
[1742278750562,22.7733307,124.21,124.17,7.38]
[1742278751260,22.7733307,124.2,124.17,7.38]
[1742278751757,0.28432314,124.17,124.15,0.03]
[1742278751940,22.7733307,124.16,124.15,0.03]
[1742278753162,7.64432314,124.17,124.15,0.03]
[1742278753163,30.41765384,124.17,124.15,0.03]
[1742278753644,22.7733307,124.16,124.15,0.03]
[1742278757665,89.14,124.2,124.15,0.03]
[1742278757968,42.7733307,124.19,124.15,0.03]
[1742278758275,22.7733307,124.18,124.15,0.03]
[1742278758452,42.7733307,124.19,124.15,0.03]
[1742278758643,22.7733307,124.2,124.16,1.6133]
[1742278761359,42.7733307,124.2,124.16,1.6133]
[1742278761760,22.7733307,124.19,124.16,1.6133]
[1742278764171,42.7733307,124.2,124.16,1.6133]
[1742278764583,42.7733307,124.2,124.16,9.6673]
[1742278764759,22.7733307,124.18,124.16,1.6133]
[1742278766673,28.0516,124.2,124.16,1.6133]
[1742278766674,22.7733307,124.19,124.16,1.6133]
[1742278767177,0.28432314,124.21,124.16,9.6673]
[1742278767370,22.7733307,124.2,124.16,9.6673]
[1742278769378,23.05765384,124.21,124.16,9.6673]
[1742278770190,22.7733307,124.2,124.16,1.6133]
[1742278770389,22.7733307,124.19,124.16,1.6133]
[1742278773885,22.7733307,124.19,124.16,9.6673]
[1742278774069,22.7733307,124.2,124.16,9.6673]
[1742278774273,22.7733307,124.19,124.16,1.6133]
[1742278774673,30.8257307,124.19,124.16,1.6133]
[1742278774876,22.7733307,124.19,124.16,1.6133]
[1742278775678,30.8256307,124.19,124.16,1.6133]
[1742278775997,22.7733307,124.18,124.16,1.6133]
[1742278776459,28.1827,124.19,124.15,0.03]
[1742278776667,22.7733307,124.17,124.15,0.03]
[1742278776865,30.8274307,124.16,124.15,0.03]
[1742278777088,8.0541,124.16,124.15,0.03]
[1742278777985,30.8274307,124.16,124.15,0.03]
[1742278779560,8.0541,124.16,124.15,0.03]
[1742278782062,30.8274307,124.16,124.15,0.03]
[1742278786398,31.39607698,124.16,124.15,0.03]
[1742278786572,50.04572584,124.16,124.15,0.03]
[1742278786889,31.11175384,124.16,124.15,0.03]
[1742278788392,50.04572584,124.16,124.15,0.03]
[1742278788776,54.08383029,124.16,124.15,0.03]
[1742278791393,8.33842314,124.16,124.15,0.03]
[1742278791579,31.11175384,124.16,124.15,0.03]
[1742278791785,30.96959227,124.16,124.15,0.03]
[1742278791987,31.11175384,124.16,124.15,0.03]
[1742278793110,22.94732798,124.16,124.15,0.03]
[1742278793324,14.60890484,124.16,124.15,0.03]
[1742278793875,22.66300484,124.16,124.15,0.03]
[1742278795095,30.87809188,124.16,124.15,0.03]
[1742278795698,22.82399188,124.16,124.15,0.03]
[1742278795882,30.87779188,124.17,124.15,0.03]
[1742278796496,22.82399188,124.18,124.15,0.03]
[1742278796675,22.82399188,124.19,124.15,0.03]
[1742278797073,22.82399188,124.19,124.15,8.0847]
[1742278797796,22.82399188,124.2,124.15,30.90869188]
[1742278798094,22.82399188,124.21,124.16,29.09969188]
[1742278798309,22.82399188,124.21,124.17,7.2]
[1742278798608,22.82399188,124.22,124.18,1.6515]
[1742278799011,0.063,124.23,124.19,30.87609188]
[1742278799312,0.063,124.23,124.21,28.83629188]
[1742278799614,0.063,124.23,124.22,7.2]
[1742278800302,0.063,124.23,124.22,30.02399188]
[1742278800609,0.063,124.23,124.22,31.65989188]
[1742278801499,0.063,124.23,124.22,8.8359]
[1742278802977,0.063,124.23,124.22,1.6359]
[1742278803598,0.063,124.23,124.21,13.2123]
[1742278803599,22.88699188,124.23,124.21,7.2]
[1742278804095,22.82399188,124.22,124.21,7.2]
[1742278804303,22.82399188,124.22,124.19,1.5678]
[1742278804483,0.063,124.23,124.19,1.5678]
[1742278804484,22.82399188,124.21,124.19,1.5678]
[1742278805214,22.82399188,124.22,124.19,1.5678]
[1742278805694,8.0508,124.21,124.19,1.5678]
[1742278806408,30.87479188,124.21,124.19,1.5678]
[1742278807706,30.87479188,124.21,124.18,13.8666]
[1742278810915,8.0508,124.21,124.18,13.8666]